[Event "Djerba Festival Open-B 2025"]
[Site "Djerba"]
[Date "2025.02.21"]
[Round "6.18"]
[White "Dauvois, Theo"]
[Black "Le Dore, Yann"]
[Result "0-1"]
[Annotator "NA RC"]
[ECO "E30"]
[WhiteElo "1663"]
[BlackElo "1846"]
[PlyCount "116"]
[EventDate "2025.02.15"]
[EventType "swiss"]
[EventCountry "TUN"]
[SourceTitle "playchess.com"]
[Source "ChessBase"]
[SourceQuality "1"]
[TimeControl "5400+30"]

1. d4 {[%emt 0:00:03]} Nf6 {[%emt 0:00:12]} 2. c4 {[%emt 0:00:03]} e6 {[%emt 0:00:12]} 3. Nc3 {[%emt 0:00:53]} Bb4 {[%emt 0:00:19]} 4. Bg5 {[%emt 0:00:15]} c5 {[%emt 0:00:56]} 5. Bxf6 {[%emt 0:02:33]} Qxf6 {[%emt 0:02:31]} 6. e3 {[%emt 0:01:06]} O-O {[%emt 0:02:38]} 7. a3 {[%emt 0:02:20]} Bxc3+ {[%emt 0:00:36]} 8. bxc3 {[%emt 0:00:07]} b6 {[%emt 0:00:34]} 9. Rc1 {[%emt 0:01:34]} Nc6 {[%emt 0:04:04]} 10. Nf3 {[%emt 0:03:09]} Rd8 {[%emt 0:05:19]} 11. Bd3 {[%emt 0:01:23]} Ba6 {[%emt 0:00:47]} 12. O-O {[%emt 0:01:03]} d6 {[%emt 0:00:40]} 13. Re1 {[%emt 0:03:25]} e5 {[%emt 0:00:52]} 14. Qc2 {[%emt 0:04:00]} g6 {[%emt 0:01:38]} 15. Be4 {[%emt 0:03:59]} Rac8 {[%emt 0:02:05]} 16. Bxc6 {[%emt 0:03:07]} Rxc6 {[%emt 0:00:12]} 17. Qa4 {[%emt 0:00:19]} Bb7 {[%emt 0:03:40]} 18. Qxa7 {[%emt 0:01:21]} Qe7 {[%emt 0:00:56]} 19. d5 {[%emt 0:00:25]} Rc7 {[%emt 0:00:11]} 20. Qxb6 {[%emt 0:00:41]} e4 {[%emt 0:00:24]} 21. Nd2 {[%emt 0:00:41]} Bc8 {[%emt 0:01:44]} 22. Qb3 {[%emt 0:04:35]} Re8 {[%emt 0:01:45]} 23. a4 {[%emt 0:00:53]} Qg5 {[%emt 0:02:05]} 24. Nf1 {[%emt 0:00:51]} h5 {[%emt 0:00:20]} 25. Kh1 {[%emt 0:04:11]} Rb7 {[%emt 0:06:09]} 26. Qc2 {[%emt 0:01:22]} h4 {[%emt 0:00:15]} 27. h3 {[%emt 0:00:42]} Qf6 {[%emt 0:04:08]} 28. Nh2 {[%emt 0:01:24]} Kg7 {[%emt 0:03:16]} 29. a5 {[%emt 0:58:35]} Ra7 {[%emt 0:03:48]} 30. Ra1 {[%emt 0:00:00]} Qd8 {[%emt 0:03:53]} 31. Qa4 {[%emt 0:00:00]} Bd7 {[%emt 0:00:23]} 32. Qa2 {[%emt 0:00:00]} Qf6 {[%emt 0:03:30]} 33. Qb3 {[%emt 0:00:00]} Rea8 {[%emt 0:02:47]} 34. a6 {[%emt 0:00:00]} Bc8 {[%emt 0:03:36]} 35. Qc2 {[%emt 0:00:00]} Rxa6 {[%emt 0:06:53]} 36. Rxa6 {[%emt 0:00:00]} Rxa6 {[%emt 0:00:06]} 37. Qxe4 {[%emt 0:00:00]} Ra2 {[%emt 0:00:43]} 38. Nf3 {[%emt 0:00:00]} Rxf2 {[%emt 0:05:17]} 39. Kg1 {[%emt 0:00:00]} Bf5 {[%emt 0:05:13]} 40. Qf4 {[%emt 0:00:00]} Rb2 {[%emt 0:01:51]} 41. e4 {[%emt 0:00:00]} Rxg2+ {[%emt 0:03:08]} 42. Kh1 {[%emt 0:00:00]} Bxh3 {[%emt 0:00:24]} 43. Qxf6+ {[%emt 0:00:00]} Kxf6 {[%emt 0:00:29]} 44. e5+ {[%emt 0:00:00]} dxe5 {[%emt 0:01:31]} 45. d6 {[%emt 0:00:00]} Rf2 {[%emt 0:05:31]} 46. Nxe5 {[%emt 0:00:00]} Rf1+ {[%emt 0:01:38]} 47. Rxf1+ {[%emt 0:00:00]} Bxf1 {[%emt 0:00:07]} 48. d7 {[%emt 0:00:00]} Ke7 {[%emt 0:00:10]} 49. Nxf7 {[%emt 0:00:00]} Kxd7 {[%emt 0:01:45]} 50. Ne5+ {[%emt 0:00:22]} Ke6 {[%emt 0:02:24]} 51. Nxg6 {[%emt 0:00:06]} h3 {[%emt 0:00:08]} 52. Nf8+ {[%emt 0:02:18]} Ke5 {[%emt 0:01:45]} 53. Kh2 {[%emt 0:01:00]} Kd6 {[%emt 0:01:01]} 54. Kg3 {[%emt 0:01:43]} Bd3 {[%emt 0:06:21]} 55. Kxh3 {[%emt 0:02:01]} Ke7 {[%emt 0:00:13]} 56. Kg4 {[%emt 0:00:27]} Kxf8 {[%emt 0:00:27]} 57. Kf4 {[%emt 0:00:11]} Ke7 {[%emt 0:00:41]} 58. Ke3 {[%emt 0:05:50]} Bxc4 {[%emt 0:00:17]} 0-1

[Event "Djerba Festival Open-B 2025"]
[Site "Djerba"]
[Date "2025.02.21"]
[Round "6.19"]
[White "Zerarga, Imene"]
[Black "Kolodner, Garry"]
[Result "1-0"]
[Annotator "NA"]
[ECO "B08"]
[WhiteElo "1831"]
[BlackElo "1697"]
[PlyCount "101"]
[EventDate "2025.02.15"]
[EventType "swiss"]
[EventCountry "TUN"]
[SourceTitle "playchess.com"]
[Source "ChessBase"]
[SourceQuality "1"]
[TimeControl "5400+30"]

1. e4 {[%emt 0:00:02]} g6 {[%emt 0:00:35]} 2. d4 {[%emt 0:00:19]} Bg7 {[%emt 0:00:11]} 3. Nc3 {[%emt 0:02:13]} d6 {[%emt 0:00:15]} 4. Nf3 {[%emt 0:00:19]} Nf6 {[%emt 0:02:37]} 5. Be2 {[%emt 0:01:07]} O-O {[%emt 0:01:29]} 6. O-O {[%emt 0:00:21]} c6 {[%emt 0:03:38]} 7. h3 {[%emt 0:02:33]} e5 {[%emt 0:01:02]} 8. Be3 {[%emt 0:06:01]} Qc7 {[%emt 0:03:06]} 9. Qd2 {[%emt 0:01:47]} Re8 {[%emt 0:17:34]} 10. dxe5 {[%emt 0:03:22]} dxe5 {[%emt 0:00:10]} 11. Rad1 {[%emt 0:00:10]} Nbd7 {[%emt 0:07:11]} 12. Rfe1 {[%emt 0:04:12]} Bf8 {[%emt 0:02:41]} 13. Bh6 {[%emt 0:06:26]} Bb4 {[%emt 0:00:35]} 14. Bf1 {[%emt 0:06:11]} Nc5 {[%emt 0:00:51]} 15. Ng5 {[%emt 0:01:31]} Ne6 {[%emt 0:05:20]} 16. a3 {[%emt 0:10:59]} Bf8 {[%emt 0:03:49]} 17. Bxf8 {[%emt 0:05:54]} Rxf8 {[%emt 0:00:49]} 18. Nxe6 {[%emt 0:07:48]} Bxe6 {[%emt 0:00:15]} 19. Qe3 {[%emt 0:02:21]} b6 {[%emt 0:04:22]} 20. Nb1 {[%emt 0:04:50]} Rad8 {[%emt 0:00:59]} 21. Nd2 {[%emt 0:03:32]} Rd4 {[%emt 0:01:36]} 22. Qg5 {[%emt 0:01:11]} Rfd8 {[%emt 0:12:27]} 23. Qxf6 {[%emt 0:02:06]} Rxd2 {[%emt 0:00:23]} 24. Rxd2 {[%emt 0:00:03]} Rxd2 {[%emt 0:00:15]} 25. Bd3 {[%emt 0:00:03]} Qd6 {[%emt 0:05:07]} 26. Qg5 {[%emt 0:00:56]} Rxd3 {[%emt 0:01:28]} 27. cxd3 {[%emt 0:01:53]} Kg7 {[%emt 0:01:40]} 28. Qd2 {[%emt 0:02:03]} c5 {[%emt 0:02:50]} 29. Qc3 {[%emt 0:00:50]} a5 {[%emt 0:00:31]} 30. f4 {[%emt 0:00:55]} Qd4+ {[%emt 0:01:43]} 31. Qxd4 {[%emt 0:00:10]} exd4 {[%emt 0:00:03]} 32. Kf2 {[%emt 0:01:39]} h5 {[%emt 0:00:43]} 33. Kg3 {[%emt 0:00:37]} h4+ {[%emt 0:01:44]} 34. Kxh4 {[%emt 0:00:43]} Bb3 {[%emt 0:00:13]} 35. Rc1 {[%emt 0:00:10]} c4 {[%emt 0:00:27]} 36. Rf1 {[%emt 0:00:42]} cxd3 {[%emt 0:01:35]} 37. Rf2 {[%emt 0:00:05]} Kf6 {[%emt 0:02:27]} 38. Rd2 {[%emt 0:00:22]} Bc4 {[%emt 0:01:25]} 39. g4 {[%emt 0:00:51]} Ke6 {[%emt 0:01:30]} 40. Kg5 {[%emt 0:00:26]} f5 {[%emt 0:01:40]} 41. gxf5+ {[%emt 0:00:57]} gxf5 {[%emt 0:00:38]} 42. e5 {[%emt 0:00:31]} a4 {[%emt 0:00:51]} 43. h4 {[%emt 0:00:29]} Kd5 {[%emt 0:02:44]} 44. Kxf5 {[%emt 0:00:06]} Bb5 {[%emt 0:00:20]} 45. e6 {[%emt 0:00:24]} Be8 {[%emt 0:00:38]} 46. Rxd3 {[%emt 0:00:41]} Kc4 {[%emt 0:00:26]} 47. Rd2 {[%emt 0:00:06]} d3 {[%emt 0:00:40]} 48. Ke4 {[%emt 0:00:07]} Bc6+ {[%emt 0:00:24]} 49. Ke3 {[%emt 0:00:15]} Kd5 {[%emt 0:00:13]} 50. f5 {[%emt 0:01:36]} Ke5 {[%emt 0:00:52]} 51. Rf2 {[%emt 0:00:23]} 1-0

[Event "Djerba Festival Open-B 2025"]
[Site "Djerba"]
[Date "2025.02.21"]
[Round "6.20"]
[White "Jaouadi, Saif Eddine"]
[Black "Ertemi, Ibrahim K"]
[Result "0-1"]
[Annotator "NA"]
[ECO "B40"]
[WhiteElo "1641"]
[BlackElo "1823"]
[PlyCount "116"]
[EventDate "2025.02.15"]
[EventType "swiss"]
[EventCountry "TUN"]
[SourceTitle "playchess.com"]
[Source "ChessBase"]
[SourceQuality "1"]
[TimeControl "5400+30"]

1. e4 {[%emt 0:00:30]} c5 {[%emt 0:02:24]} 2. Nc3 {[%emt 0:00:21]} Nc6 {[%emt 0:00:08]} 3. Nf3 {[%emt 0:00:23]} e6 {[%emt 0:00:10]} 4. d3 {[%emt 0:01:15]} Be7 {[%emt 0:01:56]} 5. Bf4 {[%emt 0:07:20]} d6 {[%emt 0:01:41]} 6. Be2 {[%emt 0:00:18]} e5 {[%emt 0:00:53]} 7. Bd2 {[%emt 0:00:14]} Nf6 {[%emt 0:00:11]} 8. a3 {[%emt 0:00:27]} Nd4 {[%emt 0:02:18]} 9. Nxd4 {[%emt 0:00:48]} cxd4 {[%emt 0:00:07]} 10. Nd5 {[%emt 0:00:31]} Nxd5 {[%emt 0:01:02]} 11. exd5 {[%emt 0:00:16]} O-O {[%emt 0:00:27]} 12. c4 {[%emt 0:00:06]} f5 {[%emt 0:00:39]} 13. O-O {[%emt 0:00:42]} f4 {[%emt 0:01:35]} 14. Bf3 {[%emt 0:01:12]} Bf5 {[%emt 0:04:41]} 15. Bc1 {[%emt 0:00:25]} Rf6 {[%emt 0:01:21]} 16. g4 {[%emt 0:01:48]} fxg3 {[%emt 0:04:31]} 17. fxg3 {[%emt 0:00:35]} Bh3 {[%emt 0:02:33]} 18. Rf2 {[%emt 0:00:39]} Qd7 {[%emt 0:01:39]} 19. Bg2 {[%emt 0:02:21]} Rxf2 {[%emt 0:00:52]} 20. Kxf2 {[%emt 0:00:03]} Qf5+ {[%emt 0:00:34]} 21. Qf3 {[%emt 0:00:50]} Qd7 {[%emt 0:07:34]} 22. Qd1 {[%emt 0:06:07]} Rf8+ {[%emt 0:00:27]} 23. Kg1 {[%emt 0:00:03]} Bg4 {[%emt 0:06:28]} 24. Qe1 {[%emt 0:00:12]} Qa4 {[%emt 0:03:17]} 25. h3 {[%emt 0:01:54]} Bf3 {[%emt 0:01:52]} 26. Bf1 {[%emt 0:04:07]} b5 {[%emt 0:05:56]} 27. Qb4 {[%emt 0:05:58]} Qd1 {[%emt 0:02:27]} 28. Qd2 {[%emt 0:00:15]} Qxd2 {[%emt 0:01:44]} 29. Bxd2 {[%emt 0:00:16]} bxc4 {[%emt 0:00:07]} 30. dxc4 {[%emt 0:03:08]} e4 {[%emt 0:00:20]} 31. Bf4 {[%emt 0:02:36]} e3 {[%emt 0:01:21]} 32. h4 {[%emt 0:01:13]} h6 {[%emt 0:01:10]} 33. c5 {[%emt 0:02:18]} dxc5 {[%emt 0:03:56]} 34. d6 {[%emt 0:00:17]} Bxh4 {[%emt 0:01:32]} 35. gxh4 {[%emt 0:01:05]} Rxf4 {[%emt 0:00:15]} 36. d7 {[%emt 0:00:05]} Rf8 {[%emt 0:00:06]} 37. Bc4+ {[%emt 0:03:30]} Kh8 {[%emt 0:01:10]} 38. Rf1 {[%emt 0:00:33]} Rd8 {[%emt 0:00:44]} 39. Rxf3 {[%emt 0:00:25]} Rxd7 {[%emt 0:00:37]} 40. Rf8+ {[%emt 0:00:36]} Kh7 {[%emt 0:00:28]} 41. h5 {[%emt 0:00:42]} g6 {[%emt 0:00:35]} 42. Bd3 {[%emt 0:01:24]} Kg7 {[%emt 0:00:08]} 43. Rc8 {[%emt 0:01:24]} gxh5 {[%emt 0:00:49]} 44. Rxc5 {[%emt 0:00:16]} Re7 {[%emt 0:02:37]} 45. Rc2 {[%emt 0:04:32]} Kf6 {[%emt 0:00:24]} 46. b4 {[%emt 0:00:43]} Ke5 {[%emt 0:00:28]} 47. Kh2 {[%emt 0:00:49]} Kf4 {[%emt 0:01:07]} 48. Be2 {[%emt 0:04:16]} Ke4 {[%emt 0:01:57]} 49. Rc4 {[%emt 0:01:07]} Rf7 {[%emt 0:00:33]} 50. Bxh5 {[%emt 0:00:57]} Rf2+ {[%emt 0:00:10]} 51. Kg1 {[%emt 0:00:39]} Kd3 {[%emt 0:00:30]} 52. Rc7 {[%emt 0:01:25]} Kd2 {[%emt 0:00:05]} 53. Rc5 {[%emt 0:04:59]} d3 {[%emt 0:02:59]} 54. Re5 {[%emt 0:01:57]} Rf6 {[%emt 0:01:32]} 55. b5 {[%emt 0:02:04]} e2 {[%emt 0:00:36]} 56. Bxe2 {[%emt 0:00:02]} dxe2 {[%emt 0:00:05]} 57. Rd5+ {[%emt 0:00:38]} Kc3 {[%emt 0:00:18]} 58. Rc5+ {[%emt 0:00:25]} Kb2 {[%emt 0:00:14]} 0-1

[Event "Djerba Festival Open-B 2025"]
[Site "Djerba"]
[Date "2025.02.21"]
[Round "6.21"]
[White "Alouani, Ahmed"]
[Black "Girard, Adrien"]
[Result "1-0"]
[Annotator "NA"]
[ECO "D37"]
[WhiteElo "1617"]
[BlackElo "1796"]
[PlyCount "85"]
[EventDate "2025.02.15"]
[EventType "swiss"]
[EventCountry "TUN"]
[SourceTitle "playchess.com"]
[Source "ChessBase"]
[SourceQuality "1"]
[TimeControl "5400+30"]

1. Nf3 {[%emt 0:00:54]} Nf6 {[%emt 0:00:22]} 2. d4 {[%emt 0:00:40]} d5 {[%emt 0:00:05]} 3. c4 {[%emt 0:01:38]} e6 {[%emt 0:00:09]} 4. Nc3 {[%emt 0:01:14]} a6 {[%emt 0:00:13]} 5. cxd5 {[%emt 0:00:27]} exd5 {[%emt 0:00:12]} 6. Bg5 {[%emt 0:01:11]} Be7 {[%emt 0:04:15]} 7. h3 {[%emt 0:02:34]} O-O {[%emt 0:00:44]} 8. e3 {[%emt 0:00:12]} c6 {[%emt 0:03:15]} 9. Bd3 {[%emt 0:01:45]} Re8 {[%emt 0:02:51]} 10. Qc2 {[%emt 0:00:45]} h6 {[%emt 0:00:35]} 11. Bh4 {[%emt 0:01:42]} Nbd7 {[%emt 0:04:33]} 12. O-O {[%emt 0:03:17]} Ne4 {[%emt 0:03:28]} 13. Bxe7 {[%emt 0:04:20]} Qxe7 {[%emt 0:00:07]} 14. Bxe4 {[%emt 0:01:21]} dxe4 {[%emt 0:00:05]} 15. Nd2 {[%emt 0:00:23]} Nf6 {[%emt 0:00:12]} 16. a3 {[%emt 0:01:58]} Bd7 {[%emt 0:01:54]} 17. Na4 {[%emt 0:04:00]} Nd5 {[%emt 0:12:37]} 18. Qc5 {[%emt 0:14:35]} Qg5 {[%emt 0:05:25]} 19. Kh2 {[%emt 0:01:09]} f5 {[%emt 0:03:01]} 20. Nb6 {[%emt 0:02:06]} Nxb6 {[%emt 0:00:41]} 21. Qxb6 {[%emt 0:00:04]} Rab8 {[%emt 0:03:50]} 22. Qc7 {[%emt 0:01:38]} Be6 {[%emt 0:04:29]} 23. Rac1 {[%emt 0:01:49]} Qd8 {[%emt 0:05:12]} 24. Qxd8 {[%emt 0:04:15]} Rexd8 {[%emt 0:00:26]} 25. Rc5 {[%emt 0:49:03]} Rd5 {[%emt 0:00:44]} 26. b4 {[%emt 0:00:00]} Rxc5 {[%emt 0:03:01]} 27. bxc5 {[%emt 0:00:00]} Re8 {[%emt 0:05:09]} 28. Rb1 {[%emt 0:00:00]} Bc8 {[%emt 0:00:07]} 29. Nc4 {[%emt 0:00:00]} Rd8 {[%emt 0:05:09]} 30. Rb6 {[%emt 0:00:00]} Kf7 {[%emt 0:01:19]} 31. Rb1 {[%emt 0:00:00]} Ke6 {[%emt 0:00:41]} 32. Nb6 {[%emt 0:00:00]} Bd7 {[%emt 0:01:03]} 33. h4 {[%emt 0:00:00]} Ke7 {[%emt 0:06:19]} 34. Kg3 {[%emt 0:00:00]} Be6 {[%emt 0:00:14]} 35. Kf4 {[%emt 0:00:00]} Kf6 {[%emt 0:01:03]} 36. Na4 {[%emt 0:00:00]} g5+ {[%emt 0:02:20]} 37. hxg5+ {[%emt 0:00:00]} hxg5+ {[%emt 0:00:05]} 38. Kg3 {[%emt 0:00:00]} Rd7 {[%emt 0:00:33]} 39. Nc3 {[%emt 0:00:00]} Rh7 {[%emt 0:00:54]} 40. f3 {[%emt 0:00:00]} exf3 {[%emt 0:02:02]} 41. Kxf3 {[%emt 0:00:00]} Bd5+ {[%emt 0:07:26]} 42. Nxd5+ {[%emt 0:00:00]} cxd5 {[%emt 0:00:03]} 43. Rb6+ {[%emt 0:00:00]} 1-0

[Event "Djerba Festival Open-B 2025"]
[Site "Djerba"]
[Date "2025.02.21"]
[Round "6.22"]
[White "Nayaradou, Philippe"]
[Black "Benzarti, Thabet"]
[Result "1-0"]
[Annotator "NA RC"]
[ECO "D53"]
[WhiteElo "1783"]
[BlackElo "1664"]
[PlyCount "31"]
[EventDate "2025.02.15"]
[EventType "swiss"]
[EventCountry "TUN"]
[SourceTitle "playchess.com"]
[Source "ChessBase"]
[SourceQuality "1"]
[TimeControl "5400+30"]

1. d4 {[%emt 1:31:00]} d5 {[%emt 1:31:00]} 2. Nf3 {[%emt 0:00:30]} Nf6 {[%emt 0:00:30]} 3. c4 {[%emt 0:00:30]} e6 {[%emt 0:00:30]} 4. Nc3 {[%emt 0:00:30]} c6 {[%emt 0:00:30]} 5. Bg5 {[%emt 0:00:30]} Be7 {[%emt 0:00:30]} 6. e3 {[%emt 0:00:30]} a6 {[%emt 0:00:30]} 7. c5 {[%emt 0:00:30]} Nbd7 {[%emt 0:00:30]} 8. Bd3 {[%emt 0:00:30]} O-O {[%emt 0:00:30]} 9. O-O {[%emt 0:00:30]} Re8 {[%emt 0:00:30]} 10. Qc2 {[%emt 0:00:30]} Bf8 {[%emt 0:00:30]} 11. Bxf6 {[%emt 0:00:30]} Nxf6 {[%emt 0:00:30]} 12. Ne5 {[%emt 0:00:30]} Qc7 {[%emt 0:00:30]} 13. f4 {[%emt 0:00:30]} h6 {[%emt 0:00:30]} 14. g4 {[%emt 0:00:30]} Nd7 {[%emt 0:00:30]} 15. Bh7+ {[%emt 0:00:30]} Kh8 {[%emt 0:00:30]} 16. Nxf7# {[%emt 0:00:30]} 1-0

[Event "Djerba Festival Open-B 2025"]
[Site "Djerba"]
[Date "2025.02.21"]
[Round "6.23"]
[White "Soudani, Hassan"]
[Black "Smida, Tahar"]
[Result "0-1"]
[Annotator "NA RC"]
[ECO "A03"]
[WhiteElo "1598"]
[BlackElo "1769"]
[PlyCount "55"]
[EventDate "2025.02.15"]
[EventType "swiss"]
[EventCountry "TUN"]
[SourceTitle "playchess.com"]
[Source "ChessBase"]
[SourceQuality "1"]
[TimeControl "5400+30"]

1. f4 {[%emt 0:04:31]} d5 {[%emt 0:04:26]} 2. Nf3 {[%emt 0:00:06]} e6 {[%emt 0:02:23]} 3. g3 {[%emt 0:00:16]} Nf6 {[%emt 0:00:17]} 4. Bg2 {[%emt 0:00:17]} Bc5 {[%emt 0:00:25]} 5. d4 {[%emt 0:00:18]} Bb6 {[%emt 0:00:23]} 6. b3 {[%emt 0:00:43]} O-O {[%emt 0:00:11]} 7. O-O {[%emt 0:00:48]} c5 {[%emt 0:00:40]} 8. Ba3 {[%emt 0:00:54]} Nbd7 {[%emt 0:00:32]} 9. Ne5 {[%emt 0:00:45]} Qc7 {[%emt 0:01:46]} 10. Nc3 {[%emt 1:26:52]} Re8 {[%emt 1:24:27]} 11. Nb5 {[%emt 0:00:00]} Qd8 {[%emt 0:00:00]} 12. Nd6 {[%emt 0:00:00]} Re7 {[%emt 0:00:00]} 13. e3 {[%emt 0:00:00]} Qc7 {[%emt 0:00:00]} 14. Nb5 {[%emt 0:00:00]} Qb8 {[%emt 0:00:00]} 15. Nxd7 {[%emt 0:00:00]} Nxd7 {[%emt 0:00:00]} 16. e4 {[%emt 0:00:00]} dxe4 {[%emt 0:00:00]} 17. Bxe4 {[%emt 0:00:00]} Re8 {[%emt 0:00:00]} 18. Kh1 {[%emt 0:00:00]} a6 {[%emt 0:00:00]} 19. Nc3 {[%emt 0:00:00]} cxd4 {[%emt 0:00:00]} 20. Ne2 {[%emt 0:00:00]} Nf6 {[%emt 0:00:00]} 21. Bf3 {[%emt 0:00:00]} Qa7 {[%emt 0:00:00]} 22. Bd6 {[%emt 0:00:00]} Bd7 {[%emt 0:00:00]} 23. Be5 {[%emt 0:00:00]} Bb5 {[%emt 0:00:00]} 24. Bxf6 {[%emt 0:00:00]} gxf6 {[%emt 0:00:00]} 25. Bh5 {[%emt 0:00:00]} Bc6+ {[%emt 0:00:00]} 26. Bf3 {[%emt 0:00:00]} e5 {[%emt 0:00:00]} 27. Be4 {[%emt 0:08:30]} Bd5 28. Bxd5 {[%emt 0:00:00]} 0-1

[Event "Djerba Festival Open-B 2025"]
[Site "Djerba"]
[Date "2025.02.21"]
[Round "6.24"]
[White "Badya, Vasily"]
[Black "Chaouech, Oussama"]
[Result "1-0"]
[Annotator "NA RC"]
[ECO "C01"]
[WhiteElo "1765"]
[BlackElo "1651"]
[PlyCount "71"]
[EventDate "2025.02.15"]
[EventType "swiss"]
[EventCountry "TUN"]
[SourceTitle "playchess.com"]
[Source "ChessBase"]
[SourceQuality "1"]
[TimeControl "5400+30"]

1. e4 {[%emt 1:31:00]} e6 {[%emt 1:31:00]} 2. Nc3 {[%emt 0:00:30]} d5 {[%emt 0:00:30]} 3. exd5 {[%emt 0:00:30]} exd5 {[%emt 0:00:30]} 4. d4 {[%emt 0:00:30]} Nf6 {[%emt 0:00:30]} 5. Nf3 {[%emt 0:00:30]} Bd6 {[%emt 0:00:30]} 6. Bg5 {[%emt 0:00:30]} c6 {[%emt 0:00:30]} 7. Qd2 {[%emt 0:00:30]} O-O {[%emt 0:00:30]} 8. Be2 {[%emt 0:00:30]} Re8 {[%emt 0:00:30]} 9. O-O-O {[%emt 0:00:30]} Qc7 {[%emt 0:00:30]} 10. Kb1 {[%emt 0:00:30]} Ne4 {[%emt 0:00:30]} 11. Nxe4 {[%emt 0:00:30]} dxe4 {[%emt 0:00:30]} 12. Ne1 {[%emt 0:00:30]} f6 {[%emt 0:00:30]} 13. Be3 {[%emt 0:00:30]} Be6 {[%emt 0:00:30]} 14. f3 {[%emt 0:00:30]} f5 {[%emt 0:00:30]} 15. fxe4 {[%emt 0:00:30]} fxe4 {[%emt 0:00:30]} 16. h4 {[%emt 0:00:30]} Bg3 {[%emt 0:00:30]} 17. c4 {[%emt 0:00:30]} a5 {[%emt 0:00:30]} 18. Nc2 {[%emt 0:00:30]} Na6 {[%emt 0:00:30]} 19. a3 {[%emt 0:00:30]} Rab8 {[%emt 0:00:30]} 20. Rdf1 {[%emt 0:00:30]} b5 {[%emt 0:00:30]} 21. cxb5 {[%emt 0:00:30]} cxb5 {[%emt 0:00:30]} 22. Bf4 {[%emt 0:00:30]} Bxf4 {[%emt 0:00:30]} 23. Qxf4 {[%emt 0:00:30]} Qd7 {[%emt 0:00:30]} 24. Qg5 {[%emt 0:00:30]} Bb3 {[%emt 0:00:30]} 25. Ne3 {[%emt 0:00:30]} Nc7 {[%emt 0:00:30]} 26. Bg4 {[%emt 0:00:30]} Be6 {[%emt 0:00:30]} 27. h5 {[%emt 0:00:30]} h6 {[%emt 0:00:30]} 28. Qg6 {[%emt 0:00:30]} Rb6 {[%emt 0:00:30]} 29. d5 {[%emt 0:00:30]} Nxd5 {[%emt 0:00:30]} 30. Nxd5 {[%emt 0:00:30]} Bxg4 {[%emt 0:00:30]} 31. Nxb6 {[%emt 0:00:30]} Qd3+ {[%emt 0:00:30]} 32. Ka1 {[%emt 0:00:30]} Rb8 {[%emt 0:00:30]} 33. Qxg4 {[%emt 0:00:30]} b4 {[%emt 0:00:30]} 34. Qe6+ {[%emt 0:00:30]} Kh8 {[%emt 0:00:30]} 35. a4 {[%emt 0:00:30]} Qb3 {[%emt 0:00:30]} 36. Qxb3 {[%emt 0:00:30]} 1-0

[Event "Djerba Festival Open-B 2025"]
[Site "Djerba"]
[Date "2025.02.21"]
[Round "6.25"]
[White "Chelli, Hichem"]
[Black "Nahom, Perez"]
[Result "1-0"]
[Annotator "NA"]
[ECO "E12"]
[WhiteElo "1763"]
[BlackElo "1641"]
[PlyCount "61"]
[EventDate "2025.02.15"]
[EventType "swiss"]
[EventCountry "TUN"]
[SourceTitle "playchess.com"]
[Source "ChessBase"]
[SourceQuality "1"]
[TimeControl "5400+30"]

1. d4 {[%emt 0:12:44]} Nf6 {[%emt 0:01:37]} 2. Nf3 {[%emt 0:00:14]} e6 {[%emt 0:00:20]} 3. Bg5 {[%emt 0:00:45]} d5 {[%emt 0:00:36]} 4. e3 {[%emt 0:00:19]} Be7 {[%emt 0:00:25]} 5. Bd3 {[%emt 0:00:20]} Nbd7 {[%emt 0:02:42]} 6. O-O {[%emt 0:00:57]} b6 {[%emt 0:05:26]} 7. c4 {[%emt 0:01:10]} Bb7 {[%emt 0:01:30]} 8. Nc3 {[%emt 0:00:27]} O-O {[%emt 0:00:25]} 9. Qc2 {[%emt 0:00:27]} dxc4 {[%emt 0:01:51]} 10. Bxc4 {[%emt 0:00:10]} Bxf3 {[%emt 0:00:32]} 11. gxf3 {[%emt 0:00:05]} Nh5 {[%emt 0:05:15]} 12. Bxe7 {[%emt 0:00:39]} Qxe7 {[%emt 0:00:04]} 13. Qe4 {[%emt 1:18:43]} c5 {[%emt 0:10:51]} 14. Rad1 {[%emt 0:00:00]} cxd4 {[%emt 0:02:51]} 15. Rxd4 {[%emt 0:00:00]} e5 {[%emt 0:05:33]} 16. Rd2 {[%emt 0:00:00]} Nc5 {[%emt 0:13:05]} 17. Qg4 {[%emt 0:00:00]} Nf6 {[%emt 0:03:31]} 18. Qh4 {[%emt 0:00:00]} Rad8 {[%emt 0:01:54]} 19. Rxd8 {[%emt 0:00:00]} Rxd8 {[%emt 0:00:16]} 20. b4 {[%emt 0:00:00]} Ne6 {[%emt 0:06:01]} 21. Ne4 {[%emt 0:00:00]} h6 {[%emt 0:12:47]} 22. Kh1 {[%emt 0:00:00]} Kh7 {[%emt 0:00:38]} 23. Rg1 {[%emt 0:00:00]} g5 {[%emt 0:03:05]} 24. Nxg5+ {[%emt 0:00:00]} Nxg5 {[%emt 0:00:10]} 25. Rxg5 {[%emt 0:00:00]} e4 {[%emt 0:09:31]} 26. Rh5 {[%emt 0:00:00]} Rd1+ {[%emt 0:00:53]} 27. Kg2 {[%emt 0:00:00]} exf3+ {[%emt 0:00:04]} 28. Kxf3 {[%emt 0:00:00]} Qb7+ {[%emt 0:03:25]} 29. Bd5 {[%emt 0:00:00]} Rxd5 {[%emt 0:00:02]} 30. Rxh6+ {[%emt 0:00:00]} Kg7 {[%emt 0:00:02]} 31. Qxf6+ {[%emt 0:09:00]} 1-0